fUSD/lending_fUSD_20240613
["ID","MTS","AMOUNT","RATE_DAILY","PERIOD"]
[329359335,1718277140941,-557.92,0.00028609,3]
[329359336,1718277140954,-500.0,0.00028609,3]
[329359337,1718277140966,-869.98,0.00028609,3]
[329359338,1718277140977,-2538.97,0.00028609,3]
[329359339,1718277140992,-774.79,0.00028609,3]
[329359340,1718277141004,-500.0,0.00028609,3]
[329359341,1718277141016,-869.72,0.00028609,3]
[329359342,1718277141027,-2643.48,0.00028609,3]
[329359343,1718277141039,-1050.99,0.00028609,3]
[329359344,1718277141052,-2325.51,0.00028609,3]
[329359345,1718277141063,-594.46,0.00028609,3]
[329359346,1718277141075,-6022.3,0.00028609,3]
[329359347,1718277141087,-1340.93,0.00028609,3]
[329359348,1718277141101,-525.87,0.00028609,3]
[329359349,1718277141115,-2801.14,0.00028609,3]
[329359350,1718277141127,-556.9,0.00028609,3]
[329359351,1718277141139,-1037.02,0.00028609,3]
[329359352,1718277141150,-788.09,0.00028609,3]
[329359353,1718277141162,-500.0,0.00028609,3]
[329359354,1718277141175,-1590.22,0.00028609,3]
[329359355,1718277141187,-1299.11,0.00028609,3]
[329359356,1718277141199,-1761.78,0.00028609,3]
[329359357,1718277141211,-1262.69,0.00028609,3]
[329359358,1718277141253,-4418.73,0.00028609,3]
[329359359,1718277141265,-8305.14,0.00028609,3]
[329359360,1718277141277,-615.7940327,0.00028609,3]
[329359361,1718277141288,-577.13,0.00028609,3]
[329359362,1718277141300,-1444.06,0.00028609,3]
[329359363,1718277141312,-500.0,0.00028609,3]
[329359364,1718277141323,-725.83,0.00028609,3]
[329359365,1718277141334,-1042.68,0.00028609,3]
[329359366,1718277141345,-500.0,0.00028609,3]
[329359367,1718277141357,-3100.67,0.00028609,3]
[329359368,1718277141369,-500.0,0.00028609,3]
[329359369,1718277141380,-518.8,0.00028609,3]
[329359370,1718277141392,-1727.08,0.00028609,3]
[329359371,1718277141403,-500.0,0.00028609,3]
[329359372,1718277141415,-347.3755044,0.00028609,3]
[329359373,1718277141425,-1122.65,0.00028609,3]
[329359374,1718277141437,-505.98,0.00028609,3]
[329359375,1718277141449,-1309.02,0.00028609,3]
[329359376,1718277141461,-662.75,0.00028609,3]
[329359377,1718277141472,-617.34,0.00028609,3]
[329359378,1718277141483,-983.88,0.00028609,3]
[329359379,1718277141499,-1386.52,0.00028609,3]
[329359380,1718277141511,-1442.64,0.00028609,3]
[329359381,1718277141522,-1828.6,0.00028609,3]
[329359382,1718277141535,-1892.77,0.00028609,3]
[329359383,1718277141547,-1002.34,0.00028609,3]
[329359384,1718277141561,-2616.45,0.00028609,3]
[329359385,1718277141576,-1657.94,0.00028609,3]
[329359386,1718277141588,-1131.64,0.00028609,3]
[329359387,1718277141600,-1100.13,0.00028609,3]
[329359388,1718277141612,-3181.1,0.00028609,3]
[329359389,1718277141623,-790.44,0.00028609,3]
[329359390,1718277141635,-154.533978,0.00028624,2]
[329359391,1718277141648,-2261.50005,0.00028624,2]
[329359392,1718277141660,-2174.611811,0.00028624,2]
[329359393,1718277141672,-195.896619,0.00028624,2]
[329359394,1718277141685,-2252.515979,0.00028624,2]
[329359395,1718277141696,-543.6482,0.00028624,2]
[329359396,1718277141708,-319.139473,0.00028624,2]
[329359397,1718277141720,-153.655824,0.00028624,2]
[329359398,1718277141731,-334.408129,0.00028624,2]
[329359399,1718277141742,-6302.355318,0.00028624,2]
[329359400,1718277141754,-2100.785106,0.00028624,2]
[329359401,1718277141765,-8451.729823,0.00028624,2]
[329359402,1718277141777,-219.963226,0.00028624,2]
[329359403,1718277141788,-343.039361,0.00028624,2]
[329359404,1718277141800,-8147.185355,0.00028624,2]
[329359405,1718277141811,-161.88789,0.00028634,2]
[329359406,1718277141822,-183.532503,0.00028634,2]
[329359407,1718277141838,-218.51742701,0.00028647,2]
[329359408,1718277141850,-151.28937961,0.00028678,2]
[329359409,1718277141862,-152.1899555,0.00028695,2]
[329359410,1718277141873,-250.12959222,0.00028704,7]
[329359411,1718277141884,-215.0,0.0002872,2]
[329359412,1718277141897,-153.68250367,0.00028726,2]
[329359413,1718277141908,-369.0,0.00028728,2]
[329359414,1718277141943,-218.51742701,0.00028733,2]
[329359415,1718277141962,-153.68250367,0.00028761,2]
[329359416,1718277141984,-166.66666666,0.00028765,2]
[329359417,1718277142019,-700.0,0.00028766,2]
[329359418,1718277142048,-600.0,0.00028766,2]
[329359419,1718277142077,-4000.0,0.00028766,2]
[329359420,1718277142096,-3400.0,0.00028766,2]
[329359421,1718277142115,-1183.25,0.00028766,3]
[329359422,1718277142133,-152.94225763,0.00028766,2]
[329359423,1718277142149,-704.44,0.00028766,3]
[329359424,1718277142162,-500.0,0.00028766,3]
[329359425,1718277142174,-5852.16,0.00028766,3]
[329359426,1718277142187,-2891.73,0.00028766,3]
[329359427,1718277142200,-1318.26,0.00028766,3]
[329359428,1718277142213,-2337.62,0.00028766,3]
[329359429,1718277142255,-1185.47,0.00028766,3]
[329359430,1718277142269,-1475.74,0.00028766,3]
[329359431,1718277142281,-572.37,0.00028766,3]
[329359432,1718277142299,-277.04146258,0.00028767,2]
[329359433,1718277142322,-1000.0,0.00028767,5]
[329359434,1718277142335,-1000.0,0.00028767,5]
[329359435,1718277142351,-1000.0,0.00028767,5]
[329359436,1718277142366,-1042.14929095,0.00028767,5]
[329359437,1718277142378,-218.51742701,0.00028772,2]
[329359438,1718277142392,-166.66666666,0.00028778,2]
[329359439,1718277142406,-152.96556495,0.00028796,2]
[329359440,1718277142420,-150.0,0.00028799,7]
[329359441,1718277142435,-476612.73219526,0.000288,2]
[329359442,1718277142449,-3000.0,0.000288,2]
[329359443,1718277142462,-1500.0,0.000288,2]
[329359444,1718277142477,-150.0,0.000288,6]
[329359445,1718277142498,-150.0,0.00028839,2]
[329359446,1718277142512,-182.536433,0.00028856,2]
[329359447,1718277142526,-182.601142,0.00028856,2]
[329359448,1718277142539,-181.687741,0.00028856,2]
[329359449,1718277142556,-526.20582968,0.0002886,2]
[329359450,1718277142570,-157.89937374,0.00028864,2]
[329359451,1718277142581,-697.917617,0.00028868,2]
[329359452,1718277142597,-2906.015109,0.00028868,2]
[329359453,1718277142609,-2657.338274,0.00028868,2]
[329359454,1718277142621,-1758.608282,0.00028868,2]
[329359455,1718277142634,-4260.382005,0.00028868,2]
[329359456,1718277142646,-4330.157948,0.00028868,2]
[329359457,1718277142658,-6299.462,0.00028868,2]
[329359458,1718277142670,-335.055121,0.00028868,2]
[329359459,1718277142682,-166.38546,0.00028868,2]
[329359460,1718277142694,-157.420683,0.00028868,2]
[329359461,1718277142707,-152.1899555,0.00028869,2]
[329359462,1718277142718,-152.96556495,0.00028873,2]
[329359463,1718277142730,-526.20582968,0.00028877,2]
[329359464,1718277142742,-628.5,0.0002888,3]
[329359465,1718277142754,-877.35,0.0002888,3]
[329359466,1718277142766,-1070.7,0.0002888,3]
[329359467,1718277142777,-500.0,0.0002888,3]
[329359468,1718277142788,-871.84,0.0002888,3]
[329359469,1718277142800,-1196.79,0.0002888,3]
[329359470,1718277142812,-2448.85,0.0002888,3]
[329359471,1718277142824,-748.9,0.0002888,3]
[329359472,1718277142836,-1584.05,0.0002888,3]
[329359473,1718277142847,-875.77,0.0002888,3]
[329359474,1718277142859,-896.33,0.0002888,3]
[329359475,1718277142871,-1393.21,0.0002888,3]
[329359476,1718277142885,-712.29,0.0002888,3]
[329359477,1718277142896,-3021.74,0.0002888,3]
[329359478,1718277142909,-1592.21,0.0002888,3]
[329359479,1718277142929,-2955.13,0.0002888,3]
[329359480,1718277142950,-1351.15,0.0002888,3]
[329359481,1718277142966,-1489.31,0.0002888,3]
[329359482,1718277142988,-1097.22,0.0002888,3]
[329359483,1718277143004,-1841.9,0.0002888,3]
[329359484,1718277143017,-500.0,0.0002888,3]
[329359485,1718277143029,-1562.15,0.0002888,3]
[329359486,1718277143044,-500.0,0.0002888,3]
[329359487,1718277143056,-1074.6,0.00028881,3]
[329359488,1718277143067,-31357.31,0.00028881,3]
[329359489,1718277143078,-1670.36,0.00028881,3]
[329359490,1718277143089,-1382.88,0.00028881,3]
[329359491,1718277143101,-739.94,0.00028881,3]
[329359492,1718277143113,-892.4,0.00028881,3]
[329359493,1718277143125,-1184.9,0.00028881,3]
[329359494,1718277143136,-585.64,0.00028881,3]
[329359495,1718277143147,-929.82,0.00028881,3]
[329359496,1718277143159,-623.27,0.00028881,3]
[329359497,1718277143171,-1120.48,0.00028881,3]
[329359498,1718277143182,-653.07,0.00028882,3]
[329359499,1718277143193,-500.0,0.00028882,3]
[329359500,1718277143205,-1199.36,0.00028882,3]
[329359501,1718277143216,-760.53,0.00028882,3]
[329359502,1718277143230,-439.22408788,0.00028882,3]
[329359503,1718277143254,-1016.21,0.00028882,3]
[329359504,1718277143266,-803.45,0.00028882,3]
[329359505,1718277143276,-173.71226853,0.00028882,3]
[329359506,1718277143287,-483.60962849,0.00028882,3]
[329359507,1718277143297,-913.83,0.00028882,3]
[329359508,1718277143309,-878.65,0.00028882,3]
[329359509,1718277143321,-2296.66,0.00028882,3]
[329359510,1718277143334,-500.0,0.00028882,3]
[329359511,1718277143354,-762.45,0.00028882,3]
[329359512,1718277143367,-555.03,0.00028882,3]
[329359513,1718277143386,-1924.86,0.00028882,3]
[329359514,1718277143398,-1949.34,0.00028882,3]
[329359515,1718277143409,-3080.34,0.00028882,3]
[329359516,1718277143421,-500.0,0.00028882,3]
[329359517,1718277143433,-907.62,0.00028882,3]
[329359518,1718277143447,-525.39,0.00028882,3]
[329359519,1718277143459,-985.91,0.00028882,3]
[329359520,1718277143474,-500.0,0.00028882,3]
[329359521,1718277143492,-2729.07,0.00028882,3]
[329359522,1718277143518,-500.0,0.00028882,3]
[329359523,1718277143661,-3064.01,0.00028882,3]
[329359524,1718277143684,-640.1,0.00028882,3]
[329359525,1718277143698,-500.0,0.00028882,3]
[329359526,1718277143711,-2850.36,0.00028882,3]
[329359527,1718277143724,-500.0,0.00028883,3]
[329359528,1718277143736,-315.44,0.00028883,3]
[329359529,1718277143749,-543.44,0.00028883,3]
[329359530,1718277143762,-241.04,0.00028883,3]
[329359531,1718277143773,-545.19,0.00028883,3]
[329359532,1718277143784,-866.32,0.00028883,3]
[329359533,1718277143795,-554.24,0.00028883,3]
[329359534,1718277143809,-794.39,0.00028883,3]
[329359535,1718277143824,-252.01280303,0.00028883,3]
[329359536,1718277143835,-500.0,0.00028883,3]
[329359537,1718277143852,-555.7,0.00028883,3]
[329359538,1718277143867,-1106.58,0.00028883,3]
[329359539,1718277143878,-283.47,0.00028883,3]
[329359540,1718277143891,-500.0,0.00028883,3]
[329359541,1718277143905,-1207.15,0.00028883,3]
[329359542,1718277143916,-500.0,0.00028883,3]
[329359543,1718277143929,-940.28,0.00028883,3]
[329359544,1718277143941,-633.48,0.00028883,3]
[329359545,1718277143952,-1695.46,0.00028883,3]
[329359546,1718277143966,-1351.29,0.00028883,3]
[329359547,1718277143980,-977.95,0.00028883,3]
[329359548,1718277143992,-557.92,0.00028883,3]
[329359549,1718277144005,-500.0,0.00028883,3]
[329359550,1718277144018,-869.98,0.00028883,3]
[329359551,1718277144032,-2538.97,0.00028883,3]
[329359552,1718277144047,-774.79,0.00028883,3]
[329359553,1718277144060,-500.0,0.00028883,3]
[329359554,1718277144081,-869.72,0.00028883,3]
[329359555,1718277144093,-2643.48,0.00028883,3]
[329359556,1718277144108,-1050.99,0.00028883,3]
[329359557,1718277144123,-2325.51,0.00028883,3]
[329359558,1718277144141,-594.46,0.00028883,3]
[329359559,1718277144156,-6022.3,0.00028883,3]
[329359560,1718277144172,-1340.93,0.00028883,3]
[329359561,1718277144192,-525.87,0.00028883,3]
[329359562,1718277144210,-2801.14,0.00028883,3]
[329359563,1718277144238,-556.9,0.00028883,3]
[329359564,1718277144257,-1037.02,0.00028883,3]
[329359565,1718277144269,-788.09,0.00028883,3]
[329359566,1718277144281,-1590.22,0.00028883,3]
[329359567,1718277144292,-565.15322782,0.00028883,3]
[329359568,1718277144307,-1299.11,0.00028883,3]
[329359569,1718277144320,-1761.78,0.00028883,3]
[329359570,1718277144333,-1262.69,0.00028883,3]
[329359571,1718277144345,-4418.73,0.00028883,3]
[329359572,1718277144358,-8305.14,0.00028883,3]
[329359573,1718277144371,-577.13,0.00028883,3]
[329359574,1718277144384,-1444.06,0.00028883,3]
[329359575,1718277144400,-500.0,0.00028883,3]
[329359576,1718277144412,-725.83,0.00028883,3]
[329359577,1718277144428,-1042.68,0.00028883,3]
[329359578,1718277144441,-500.0,0.00028883,3]
[329359579,1718277144454,-3100.67,0.00028883,3]
[329359580,1718277144466,-500.0,0.00028883,3]
[329359581,1718277144478,-518.8,0.00028883,3]
[329359582,1718277144490,-1727.08,0.00028883,3]
[329359583,1718277144504,-500.0,0.00028883,3]
[329359584,1718277144520,-1122.65,0.00028883,3]
[329359585,1718277144535,-505.98,0.00028883,3]
[329359586,1718277144550,-1309.02,0.00028883,3]
[329359587,1718277144566,-662.75,0.00028883,3]
[329359588,1718277144583,-617.34,0.00028883,3]
[329359589,1718277144594,-983.88,0.00028883,3]
[329359590,1718277144612,-1386.52,0.00028883,3]
[329359591,1718277144636,-1442.64,0.00028883,3]
[329359592,1718277144662,-1828.6,0.00028883,3]
[329359593,1718277144678,-1892.77,0.00028883,3]
[329359594,1718277144689,-1002.34,0.00028883,3]
[329359595,1718277144700,-2616.45,0.00028883,3]
[329359596,1718277144712,-1657.94,0.00028883,3]
[329359597,1718277144727,-1131.64,0.00028883,3]
[329359598,1718277144738,-1100.13,0.00028883,3]
[329359599,1718277144751,-3181.1,0.00028883,3]
[329359600,1718277144765,-790.44,0.00028883,3]
[329359601,1718277144776,-1608.33890032,0.000289,2]
[329359602,1718277144792,-200.0,0.000289,10]
[329359603,1718277144804,-152.38627793,0.00028925,2]
[329359604,1718277144817,-160.61324991,0.00028929,2]
[329359605,1718277144831,-15878.33376959,0.0002893,7]
[329359606,1718277144843,-152.96556495,0.00028962,2]
[329359607,1718277144855,-163.53,0.00028965,2]
[329359608,1718277144886,-300.0,0.00028965,2]
[329359609,1718277144900,-2100.0,0.00028965,2]
[329359610,1718277144919,-2261.50005,0.00028973,2]
[329359611,1718277144937,-2174.611811,0.00028973,2]
[329359612,1718277144952,-2252.515979,0.00028973,2]
[329359613,1718277144966,-543.6482,0.00028973,2]
[329359614,1718277144981,-319.139473,0.00028973,2]
[329359615,1718277145002,-153.655824,0.00028973,2]
[329359616,1718277145015,-334.408129,0.00028973,2]
[329359617,1718277145026,-6302.355318,0.00028973,2]
[329359618,1718277145038,-2100.785106,0.00028973,2]
[329359619,1718277145051,-8451.729823,0.00028973,2]
[329359620,1718277145064,-219.963226,0.00028973,2]
[329359621,1718277145075,-343.039361,0.00028973,2]
[329359622,1718277145089,-8147.185355,0.00028973,2]
[329359623,1718277145106,-152.38627793,0.00028997,2]
[329359624,1718277145127,-1000.0,0.00029,8]
[329359625,1718277145139,-3162.12708458,0.00029,2]
[329359626,1718277145150,-32066.1017632,0.00029,2]
[329359627,1718277145161,-2245.19223316,0.00029,3]
[329359628,1718277145174,-500.0,0.00029,2]
[329359629,1718277145185,-19549.46776396,0.00029,5]
[329359630,1718277145196,-515.68138034,0.00029,7]
[329359631,1718277145209,-2289.456576,0.00029,5]
[329359632,1718277145220,-162551.01277802,0.00029,3]
[329359633,1718277145245,-20000.0,0.00029,2]
[329359634,1718277145260,-1450.0,0.00029,2]
[329359635,1718277145276,-250.12959222,0.00029003,7]
[329359636,1718277145287,-5000.0,0.0002902,2]
[329359637,1718277145300,-152.96556495,0.00029025,2]
[329359638,1718277145311,-5000.0,0.00029039,2]
[329359639,1718277145323,-1183.25,0.0002904,3]
[329359640,1718277145336,-704.44,0.0002904,3]
[329359641,1718277145349,-500.0,0.0002904,3]
[329359642,1718277145361,-5852.16,0.0002904,3]
[329359643,1718277145373,-2891.73,0.0002904,3]
[329359644,1718277145384,-1318.26,0.0002904,3]
[329359645,1718277145397,-2337.62,0.0002904,3]
[329359646,1718277145408,-1185.47,0.0002904,3]
[329359647,1718277145418,-1475.74,0.0002904,3]
[329359648,1718277145431,-572.37,0.0002904,3]
[329359649,1718277145444,-476.328794,0.00029041,7]
[329359650,1718277145459,-476.328794,0.00029041,7]
[329359651,1718277145472,-476.328794,0.00029041,7]
[329359652,1718277145488,-1890.21,0.00029048,2]
[329359653,1718277145502,-29975.55869259,0.0002907,2]
[329359654,1718277145517,-156.17044263,0.00029075,2]
[329359655,1718277145531,-5000.0,0.00029087,2]
[329359656,1718277145544,-150.5,0.0002909,15]
[329359657,1718277145556,-5000.0,0.00029092,2]
[329359658,1718277145570,-1000.0,0.000291,8]
[329359659,1718277145584,-649.0,0.000291,8]
[329359660,1718277145597,-152.38627793,0.00029103,2]
[329359661,1718277145611,-161.88789,0.00029103,2]
[329359662,1718277145625,-183.532503,0.00029103,2]
[329359663,1718277145639,-151.28937961,0.00029111,2]
[329359664,1718277145661,-695.20998317,0.00029114,2]
[329359665,1718277145675,-157.96553431,0.00029119,2]
[329359666,1718277145687,-302.60439342,0.0002913,7]
[329359667,1718277145710,-5000.0,0.00029132,2]
[329359668,1718277145734,-5000.0,0.00029144,2]
[329359669,1718277145748,-5000.0,0.00029148,2]
[329359670,1718277145773,-2798.2,0.00029153,2]
[329359671,1718277145794,-628.5,0.00029154,3]
[329359672,1718277145812,-877.35,0.00029154,3]
[329359673,1718277145828,-1070.7,0.00029154,3]
[329359674,1718277145841,-500.0,0.00029154,3]
[329359675,1718277145852,-871.84,0.00029154,3]
[329359676,1718277145863,-1196.79,0.00029154,3]
[329359677,1718277145874,-2448.85,0.00029154,3]
[329359678,1718277145885,-748.9,0.00029154,3]
[329359679,1718277145896,-1584.05,0.00029154,3]
[329359680,1718277145906,-875.77,0.00029154,3]
[329359681,1718277145923,-896.33,0.00029154,3]
[329359682,1718277145935,-1393.21,0.00029154,3]
[329359683,1718277145960,-712.29,0.00029154,3]
[329359684,1718277145971,-3021.74,0.00029154,3]
[329359685,1718277145982,-1592.21,0.00029154,3]
[329359686,1718277145994,-2955.13,0.00029154,3]
[329359687,1718277146009,-1351.15,0.00029154,3]
[329359688,1718277146030,-1489.31,0.00029154,3]
[329359689,1718277146043,-1097.22,0.00029154,3]
[329359690,1718277146055,-1841.9,0.00029154,3]
[329359691,1718277146068,-500.0,0.00029154,3]
[329359692,1718277146083,-1562.15,0.00029154,3]
[329359693,1718277146098,-500.0,0.00029154,3]
[329359694,1718277146112,-1074.6,0.00029155,3]
[329359695,1718277146125,-31357.31,0.00029155,3]
[329359696,1718277146137,-1670.36,0.00029155,3]
[329359697,1718277146148,-1382.88,0.00029155,3]
[329359698,1718277146159,-739.94,0.00029155,3]
[329359699,1718277146170,-892.4,0.00029155,3]
[329359700,1718277146183,-1184.9,0.00029155,3]
[329359701,1718277146194,-585.64,0.00029155,3]
[329359702,1718277146207,-929.82,0.00029155,3]
[329359703,1718277146221,-623.27,0.00029155,3]
[329359704,1718277146255,-1120.48,0.00029155,3]
[329359705,1718277146269,-653.07,0.00029156,3]
[329359706,1718277146281,-609.66,0.00029156,3]
[329359707,1718277146293,-1199.36,0.00029156,3]
[329359708,1718277146418,-760.53,0.00029156,3]
[329359709,1718277146431,-1016.21,0.00029156,3]
[329359710,1718277146454,-803.45,0.00029156,3]
[329359711,1718277146475,-913.83,0.00029156,3]
[329359712,1718277146494,-878.65,0.00029156,3]
[329359713,1718277146522,-2296.66,0.00029156,3]
[329359714,1718277146536,-500.0,0.00029156,3]
[329359715,1718277146551,-762.45,0.00029156,3]
[329359716,1718277146566,-555.03,0.00029156,3]
[329359717,1718277146584,-1924.86,0.00029156,3]
[329359718,1718277146605,-1949.34,0.00029156,3]
[329359719,1718277146626,-3080.34,0.00029156,3]
[329359720,1718277146641,-500.0,0.00029156,3]
[329359721,1718277146663,-907.62,0.00029156,3]
[329359722,1718277146678,-525.39,0.00029156,3]
[329359723,1718277146697,-985.91,0.00029156,3]
[329359724,1718277146709,-500.0,0.00029156,3]
[329359725,1718277146725,-2729.07,0.00029156,3]
[329359726,1718277146742,-500.0,0.00029156,3]
[329359727,1718277146770,-3064.01,0.00029156,3]
[329359728,1718277146785,-640.1,0.00029156,3]
[329359729,1718277146799,-500.0,0.00029156,3]
[329359730,1718277146821,-2850.36,0.00029156,3]
[329359731,1718277146838,-260.3,0.00029157,3]
[329359732,1718277146851,-543.44,0.00029157,3]
[329359733,1718277146867,-545.19,0.00029157,3]
[329359734,1718277146878,-866.32,0.00029157,3]
[329359735,1718277146890,-554.24,0.00029157,3]
[329359736,1718277146902,-794.39,0.00029157,3]
[329359737,1718277146913,-500.0,0.00029157,3]
[329359738,1718277146927,-555.7,0.00029157,3]
[329359739,1718277146939,-1106.58,0.00029157,3]
[329359740,1718277146950,-283.47,0.00029157,3]
[329359741,1718277146963,-500.0,0.00029157,3]
[329359742,1718277146974,-1207.15,0.00029157,3]
[329359743,1718277146985,-500.0,0.00029157,3]
[329359744,1718277146996,-940.28,0.00029157,3]
[329359745,1718277147009,-633.48,0.00029157,3]
[329359746,1718277147021,-1695.46,0.00029157,3]
[329359747,1718277147043,-1351.29,0.00029157,3]
[329359748,1718277147059,-977.95,0.00029157,3]
[329359749,1718277147070,-557.92,0.00029157,3]
[329359750,1718277147084,-511.07301907,0.00029157,3]
[329359751,1718277147097,-869.98,0.00029157,3]
[329359752,1718277147121,-2538.97,0.00029157,3]
[329359753,1718277147132,-774.79,0.00029157,3]
[329359754,1718277147154,-500.0,0.00029157,3]
[329359755,1718277147166,-869.72,0.00029157,3]
[329359756,1718277147178,-2643.48,0.00029157,3]
[329359757,1718277147192,-1050.99,0.00029157,3]
[329359758,1718277147206,-2325.51,0.00029157,3]
[329359759,1718277147225,-594.46,0.00029157,3]
[329359760,1718277147286,-6022.3,0.00029157,3]
[329359761,1718277147314,-1340.93,0.00029157,3]
[329359762,1718277147332,-525.87,0.00029157,3]
[329359763,1718277147368,-2801.14,0.00029157,3]
[329359764,1718277147380,-556.9,0.00029157,3]
[329359765,1718277147392,-1037.02,0.00029157,3]
[329359766,1718277147404,-788.09,0.00029157,3]
[329359767,1718277147421,-1590.22,0.00029157,3]
[329359768,1718277147446,-1299.11,0.00029157,3]
[329359769,1718277147465,-1761.78,0.00029157,3]
[329359770,1718277147489,-1262.69,0.00029157,3]
[329359771,1718277147522,-4418.73,0.00029157,3]
[329359772,1718277147552,-8305.14,0.00029157,3]
[329359773,1718277147564,-577.13,0.00029157,3]
[329359774,1718277147577,-1444.06,0.00029157,3]
[329359775,1718277147589,-500.0,0.00029157,3]
[329359776,1718277147606,-725.83,0.00029157,3]
[329359777,1718277147626,-1042.68,0.00029157,3]
[329359778,1718277147651,-500.0,0.00029157,3]
[329359779,1718277147671,-3100.67,0.00029157,3]
[329359780,1718277147687,-500.0,0.00029157,3]
[329359781,1718277147701,-518.8,0.00029157,3]
[329359782,1718277147715,-1727.08,0.00029157,3]
[329359783,1718277147732,-500.0,0.00029157,3]
[329359784,1718277147748,-1122.65,0.00029157,3]
[329359785,1718277147776,-505.98,0.00029157,3]
[329359786,1718277147790,-1309.02,0.00029157,3]
[329359787,1718277147808,-662.75,0.00029157,3]
[329359788,1718277147825,-617.34,0.00029157,3]
[329359789,1718277147844,-983.88,0.00029157,3]
[329359790,1718277147867,-1386.52,0.00029157,3]
[329359791,1718277147882,-1442.64,0.00029157,3]
[329359792,1718277147898,-1828.6,0.00029157,3]
[329359793,1718277147915,-1892.77,0.00029157,3]
[329359794,1718277147943,-1002.34,0.00029157,3]
[329359795,1718277147962,-2616.45,0.00029157,3]
[329359796,1718277147988,-1657.94,0.00029157,3]
[329359797,1718277148010,-1131.64,0.00029157,3]
[329359798,1718277148031,-1100.13,0.00029157,3]
[329359799,1718277148054,-3181.1,0.00029157,3]
[329359800,1718277148073,-790.44,0.00029157,3]
[329359801,1718277148089,-20140.74,0.00029174,2]
[329359802,1718277148109,-152.96556495,0.00029178,2]
[329359803,1718277148130,-5000.0,0.0002919,2]
[329359804,1718277148148,-152.94225763,0.00029192,2]
[329359805,1718277148166,-157.99,0.000292,2]
[329359806,1718277148185,-2530.57,0.00029201,2]
[329359807,1718277148204,-152.1899555,0.00029206,2]
[329359808,1718277148220,-150.0,0.00029212,7]
[329359809,1718277148250,-25000.0,0.00029213,2]
[329359810,1718277148267,-697.917617,0.0002922,2]
[329359811,1718277148285,-2906.015109,0.0002922,2]
[329359812,1718277148303,-2657.338274,0.0002922,2]
[329359813,1718277148321,-1758.608282,0.0002922,2]
[329359814,1718277148345,-4260.382005,0.0002922,2]
[329359815,1718277148363,-4330.157948,0.0002922,2]
[329359816,1718277148385,-6299.462,0.0002922,2]
[329359817,1718277148406,-335.055121,0.0002922,2]
[329359818,1718277148423,-3300.46,0.00029221,2]
[329359819,1718277148441,-5000.0,0.00029245,2]
[329359820,1718277148459,-153.68250367,0.0002925,2]
[329359821,1718277148475,-151.0,0.00029251,6]
[329359822,1718277148495,-152.38627793,0.00029254,2]
[329359823,1718277148511,-157.89937374,0.00029264,2]
[329359824,1718277148535,-600.0,0.00029266,8]
[329359825,1718277148551,-157.89937374,0.00029268,2]
[329359826,1718277148570,-152.96556495,0.00029294,2]
[329359827,1718277148586,-150.0,0.000293,6]
[329359828,1718277148604,-250.12959222,0.00029302,7]
[329359829,1718277148623,-106.39693554,0.00029313,2]
[329359830,1718277149072,-255.0,0.00024656,2]
[329359831,1718277149092,-245.0,0.00024656,2]
[329359832,1718277149110,-500.0,0.00025047,3]
[329359833,1718277149128,-500.0,0.00025321,3]
[329359834,1718277149144,-500.0,0.00025592,3]